[Event "Titled Tuesday Blitz February 28 Late 2023"]
[White "Comas Fabrego, Lluis"]
[Black "Gerbelli Neto, Eduardo"]
[WhiteFideId "2200325"]
[BlackFideId "2103281"]
[WhiteElo "2523"]
[BlackElo "2178"]
[Result "1-0"]
[Round "05"]
[TimeControl "180+2"]
[Date "2023.02.28"]
[WhiteClock "0:00:02"]
[BlackClock "0:00:04"]

1. Nf3 {[%clk 0:03:00]}  Nf6 {[%clk 0:02:58]} 2. c4 {[%clk 0:03:00]}  c5 {[%clk 0:02:58]} 3. Nc3 {[%clk 0:02:59]}  d5 {[%clk 0:02:58]} 4. cxd5 {[%clk 0:02:58]}  Nxd5 {[%clk 0:02:59]} 5. e4 {[%clk 0:02:58]}  Nb4 {[%clk 0:02:59]} 6. Bb5+ {[%clk 0:02:56]}  N8c6 {[%clk 0:02:58]} 7. d4 {[%clk 0:02:51]}  cxd4 {[%clk 0:02:53]} 8. a3 {[%clk 0:02:51]}  Bd7 {[%clk 0:02:36]} 9. axb4 {[%clk 0:02:41]}  dxc3 {[%clk 0:02:36]} 10. bxc3 {[%clk 0:02:42]}  g6 {[%clk 0:02:36]} 11. Bc4 {[%clk 0:02:00]}  Bg7 {[%clk 0:02:34]} 12. Qb3 {[%clk 0:01:59]}  O-O {[%clk 0:02:32]} 13. O-O {[%clk 0:01:58]}  Qc7 {[%clk 0:02:22]} 14. Bg5 {[%clk 0:01:48]}  Bg4 {[%clk 0:02:14]} 15. Rac1 {[%clk 0:01:26]}  Bxf3 {[%clk 0:01:58]} 16. gxf3 {[%clk 0:01:25]}  Ne5 {[%clk 0:01:58]} 17. Be2 {[%clk 0:01:25]}  Rac8 {[%clk 0:01:48]} 18. c4 {[%clk 0:01:21]}  h6 {[%clk 0:01:26]} 19. Be3 {[%clk 0:01:20]}  b6 {[%clk 0:01:23]} 20. c5 {[%clk 0:01:19]}  Qd7 {[%clk 0:01:10]} 21. f4 {[%clk 0:01:00]}  Nc6 {[%clk 0:00:54]} 22. cxb6 {[%clk 0:00:49]}  axb6 {[%clk 0:00:54]} 23. Bxb6 {[%clk 0:00:48]}  Nd4 {[%clk 0:00:52]} 24. Qd3 {[%clk 0:00:27]}  Rxc1 {[%clk 0:00:41]} 25. Rxc1 {[%clk 0:00:26]}  Nxe2+ {[%clk 0:00:18]} 26. Qxe2 {[%clk 0:00:26]}  Qe6 {[%clk 0:00:15]} 27. Bc5 {[%clk 0:00:23]}  Rd8 {[%clk 0:00:14]} 28. Kg2 {[%clk 0:00:20]}  h5 {[%clk 0:00:12]} 29. e5 {[%clk 0:00:19]}  Qf5 {[%clk 0:00:09]} 30. Rd1 {[%clk 0:00:15]}  Re8 {[%clk 0:00:08]} 31. Qf3 {[%clk 0:00:13]}  e6 {[%clk 0:00:08]} 32. Rd7 {[%clk 0:00:10]}  Rc8 {[%clk 0:00:05]} 33. h3 {[%clk 0:00:05]}  Bh6 {[%clk 0:00:05]} 34. Be3 {[%clk 0:00:03]}  h4 {[%clk 0:00:04]} 35. b5 {[%clk 0:00:03]}  Rc3 {[%clk 0:00:03]} 36. b6 {[%clk 0:00:03]}  g5 {[%clk 0:00:02]} 37. b7 {[%clk 0:00:02]}  Rb3 {[%clk 0:00:02]} 38. Rd8+ {[%clk 0:00:03]}  Kg7 {[%clk 0:00:02]} 39. b8=Q {[%clk 0:00:03]}  Rxb8 {[%clk 0:00:03]} 40. Rxb8 {[%clk 0:00:03]}  gxf4 {[%clk 0:00:04]} 41. Qg4+ {[%clk 0:00:03]}  Qxg4+ {[%clk 0:00:04]} 42. hxg4 {[%clk 0:00:03]}  fxe3 {[%clk 0:00:05]} 43. fxe3 {[%clk 0:00:03]}  Bxe3 {[%clk 0:00:06]} 44. Kf3 {[%clk 0:00:03]}  Bd4 {[%clk 0:00:06]} 45. Rb5 {[%clk 0:00:03]}  Kg6 {[%clk 0:00:05]} 46. Kg2 {[%clk 0:00:02]}  Kg5 {[%clk 0:00:05]} 47. Kh3 {[%clk 0:00:02]}  Kf4 {[%clk 0:00:04]} 48. Rb7 {[%clk 0:00:02]} 1-0


[Site "https://www.chess.com"]

[Event "Titled Tuesday Blitz February 28 Late 2023"]
[White "mohsengabr2002"]
[Black "Vanek, Tomas"]
[BlackFideId "313459"]
[WhiteElo "2336"]
[BlackElo "2052"]
[Result "1-0"]
[Round "05"]
[TimeControl "180+2"]
[Date "2023.02.28"]
[WhiteClock "0:00:17"]
[BlackClock "0:00:11"]

1. h4 {[%clk 0:03:00]}  d5 {[%clk 0:02:58]} 2. h5 {[%clk 0:02:58]}  h6 {[%clk 0:02:57]} 3. b3 {[%clk 0:02:58]}  e5 {[%clk 0:02:55]} 4. Bb2 {[%clk 0:02:58]}  Bd6 {[%clk 0:02:36]} 5. Nf3 {[%clk 0:02:52]}  Qe7 {[%clk 0:02:33]} 6. e3 {[%clk 0:02:51]}  Nf6 {[%clk 0:02:31]} 7. d4 {[%clk 0:02:49]}  Nbd7 {[%clk 0:02:26]} 8. c4 {[%clk 0:02:43]}  c6 {[%clk 0:02:15]} 9. Nc3 {[%clk 0:02:41]}  O-O {[%clk 0:02:01]} 10. Qc2 {[%clk 0:02:34]}  exd4 {[%clk 0:01:56]} 11. Nxd4 {[%clk 0:02:34]}  Nc5 {[%clk 0:01:56]} 12. O-O-O {[%clk 0:02:26]}  a6 {[%clk 0:01:27]} 13. Nf5 {[%clk 0:02:23]}  Bxf5 {[%clk 0:01:27]} 14. Qxf5 {[%clk 0:02:24]}  b5 {[%clk 0:01:17]} 15. cxd5 {[%clk 0:02:20]}  b4 {[%clk 0:01:17]} 16. Ne2 {[%clk 0:02:05]}  Nce4 {[%clk 0:01:03]} 17. f3 {[%clk 0:01:42]}  Nc3 {[%clk 0:01:03]} 18. Nxc3 {[%clk 0:01:11]}  Qxe3+ {[%clk 0:01:01]} 19. Kb1 {[%clk 0:01:11]}  bxc3 {[%clk 0:01:02]} 20. Bc1 {[%clk 0:01:05]}  Qf2 {[%clk 0:00:49]} 21. dxc6 {[%clk 0:00:54]}  Rad8 {[%clk 0:00:35]} 22. Qc2 {[%clk 0:00:53]}  Qc5 {[%clk 0:00:35]} 23. Bxa6 {[%clk 0:00:44]}  Nd5 {[%clk 0:00:34]} 24. a3 {[%clk 0:00:37]}  Ra8 {[%clk 0:00:29]} 25. Bc4 {[%clk 0:00:35]}  Qxc4 {[%clk 0:00:20]} 26. bxc4 {[%clk 0:00:32]}  Rfb8+ {[%clk 0:00:19]} 27. Ka1 {[%clk 0:00:26]}  Bxa3 {[%clk 0:00:17]} 28. Bxa3 {[%clk 0:00:19]}  Rxa3+ {[%clk 0:00:16]} 29. Qa2 {[%clk 0:00:19]}  Rxa2+ {[%clk 0:00:16]} 30. Kxa2 {[%clk 0:00:18]}  Nb4+ {[%clk 0:00:16]} 31. Ka3 {[%clk 0:00:18]}  Nc2+ {[%clk 0:00:14]} 32. Ka4 {[%clk 0:00:18]}  Ne3 {[%clk 0:00:12]} 33. c7 {[%clk 0:00:17]}  Rc8 {[%clk 0:00:11]} 34. Rd8+ {[%clk 0:00:17]}  Rxd8 {[%clk 0:00:10]} 35. cxd8=Q+ {[%clk 0:00:17]}  Kh7 {[%clk 0:00:11]} 36. Qd3+ {[%clk 0:00:17]} 1-0


[Site "https://www.chess.com"]

[Event "Titled Tuesday Blitz February 28 Late 2023"]
[White "Manu_ChessExcelsior"]
[Black "Van Foreest, Machteld"]
[BlackFideId "1051563"]
[WhiteElo "1980"]
[BlackElo "2018"]
[Result "0-1"]
[Round "05"]
[TimeControl "180+2"]
[Date "2023.02.28"]
[WhiteClock "0:00:15"]
[BlackClock "0:00:24"]

1. e4 {[%clk 0:03:00]}  c5 {[%clk 0:02:58]} 2. Nf3 {[%clk 0:02:57]}  e6 {[%clk 0:02:58]} 3. g3 {[%clk 0:02:54]}  d5 {[%clk 0:02:57]} 4. exd5 {[%clk 0:02:51]}  exd5 {[%clk 0:02:58]} 5. Qe2+ {[%clk 0:02:47]}  Be7 {[%clk 0:02:55]} 6. Bg2 {[%clk 0:02:47]}  Nf6 {[%clk 0:02:55]} 7. O-O {[%clk 0:02:46]}  O-O {[%clk 0:02:55]} 8. d4 {[%clk 0:02:44]}  Nc6 {[%clk 0:02:54]} 9. dxc5 {[%clk 0:02:43]}  Bxc5 {[%clk 0:02:50]} 10. h3 {[%clk 0:02:36]}  Re8 {[%clk 0:02:46]} 11. Qb5 {[%clk 0:02:30]}  Bb6 {[%clk 0:02:41]} 12. Nc3 {[%clk 0:02:23]}  Bf5 {[%clk 0:02:27]} 13. Bg5 {[%clk 0:02:05]}  d4 {[%clk 0:02:18]} 14. Nd5 {[%clk 0:02:02]}  Qxd5 {[%clk 0:02:16]} 15. Qxd5 {[%clk 0:01:48]}  Nxd5 {[%clk 0:02:17]} 16. Nh4 {[%clk 0:01:47]}  Be4 {[%clk 0:02:15]} 17. Bxe4 {[%clk 0:01:42]}  Rxe4 {[%clk 0:02:16]} 18. Nf5 {[%clk 0:01:32]}  Re5 {[%clk 0:02:00]} 19. g4 {[%clk 0:01:27]}  g6 {[%clk 0:01:56]} 20. f4 {[%clk 0:01:26]}  Re2 {[%clk 0:01:46]} 21. Nh6+ {[%clk 0:01:22]}  Kg7 {[%clk 0:01:44]} 22. f5 {[%clk 0:01:22]}  Ne3 {[%clk 0:01:27]} 23. fxg6 {[%clk 0:01:06]}  Nxf1 {[%clk 0:01:23]} 24. Rxf1 {[%clk 0:01:07]}  d3+ {[%clk 0:01:23]} 25. Kh1 {[%clk 0:01:07]}  Rf2 {[%clk 0:01:21]} 26. Nf5+ {[%clk 0:00:54]}  Kxg6 {[%clk 0:01:17]} 27. Rxf2 {[%clk 0:00:45]}  Bxf2 {[%clk 0:01:17]} 28. h4 {[%clk 0:00:41]}  dxc2 {[%clk 0:01:09]} 29. Bc1 {[%clk 0:00:37]}  h5 {[%clk 0:01:06]} 30. Kg2 {[%clk 0:00:32]}  hxg4 {[%clk 0:01:04]} 31. Nh6 {[%clk 0:00:33]}  g3 {[%clk 0:01:02]} 32. Ng4 {[%clk 0:00:32]}  Re8 {[%clk 0:00:59]} 33. h5+ {[%clk 0:00:29]}  Kf5 {[%clk 0:00:43]} 34. Nh6+ {[%clk 0:00:27]}  Kf6 {[%clk 0:00:37]} 35. Ng4+ {[%clk 0:00:26]}  Kf5 {[%clk 0:00:37]} 36. Nh6+ {[%clk 0:00:27]}  Ke4 {[%clk 0:00:37]} 37. Nxf7 {[%clk 0:00:27]}  Kd3 {[%clk 0:00:33]} 38. Nd6 {[%clk 0:00:25]}  Rh8 {[%clk 0:00:29]} 39. h6 {[%clk 0:00:25]}  Be3 {[%clk 0:00:29]} 40. Nf7 {[%clk 0:00:18]}  Bxc1 {[%clk 0:00:27]} 41. Nxh8 {[%clk 0:00:18]}  Bxh6 {[%clk 0:00:25]} 42. Nf7 {[%clk 0:00:14]}  c1=Q {[%clk 0:00:26]} 43. b4 {[%clk 0:00:14]}  Qf4 {[%clk 0:00:25]} 44. Ne5+ {[%clk 0:00:14]}  Nxe5 {[%clk 0:00:23]} 45. b5 {[%clk 0:00:14]}  Qf2+ {[%clk 0:00:23]} 46. Kh3 {[%clk 0:00:15]}  Qh2# {[%clk 0:00:24]} 0-1


[Site "https://www.chess.com"]

[Event "Titled Tuesday Blitz February 28 Late 2023"]
[White "Bulgurlu, Okan"]
[Black "Desideri, Ricardo Maruchi"]
[WhiteFideId "6352316"]
[BlackFideId "2110440"]
[WhiteElo "2326"]
[BlackElo "1945"]
[Result "1-0"]
[Round "05"]
[TimeControl "180+2"]
[Date "2023.02.28"]
[WhiteClock "0:02:26"]
[BlackClock "0:00:44"]

1. e4 {[%clk 0:03:00]}  c5 {[%clk 0:02:56]} 2. Nf3 {[%clk 0:03:01]}  d6 {[%clk 0:02:55]} 3. Bb5+ {[%clk 0:03:00]}  Nd7 {[%clk 0:02:54]} 4. Bxd7+ {[%clk 0:03:01]}  Bxd7 {[%clk 0:02:52]} 5. O-O {[%clk 0:03:02]}  e5 {[%clk 0:02:39]} 6. h3 {[%clk 0:02:59]}  Bc6 {[%clk 0:02:38]} 7. Re1 {[%clk 0:02:59]}  Nf6 {[%clk 0:02:36]} 8. c3 {[%clk 0:02:59]}  g6 {[%clk 0:02:27]} 9. d4 {[%clk 0:02:58]}  cxd4 {[%clk 0:02:25]} 10. cxd4 {[%clk 0:02:58]}  Bxe4 {[%clk 0:02:20]} 11. dxe5 {[%clk 0:02:44]}  Bxf3 {[%clk 0:02:19]} 12. Qxf3 {[%clk 0:02:40]}  dxe5 {[%clk 0:01:12]} 13. Rxe5+ {[%clk 0:02:33]}  Kd7 {[%clk 0:01:13]} 14. Bg5 {[%clk 0:02:31]}  Bg7 {[%clk 0:00:57]} 15. Rd5+ {[%clk 0:02:29]}  Nxd5 {[%clk 0:00:55]} 16. Bxd8 {[%clk 0:02:29]}  Raxd8 {[%clk 0:00:51]} 17. Qxd5+ {[%clk 0:02:29]}  Ke7 {[%clk 0:00:52]} 18. Qxb7+ {[%clk 0:02:26]}  Rd7 {[%clk 0:00:51]} 19. Qe4+ {[%clk 0:02:27]}  Kd8 {[%clk 0:00:48]} 20. Nc3 {[%clk 0:02:27]}  Re8 {[%clk 0:00:46]} 21. Qa8+ {[%clk 0:02:25]}  Ke7 {[%clk 0:00:44]} 22. Re1+ {[%clk 0:02:26]} 1-0


[Site "https://www.chess.com"]

[Event "Titled Tuesday Blitz February 28 Late 2023"]
[White "Mendez Machado, Andre"]
[Black "Haszon, David"]
[WhiteFideId "6603793"]
[BlackFideId "733610"]
[WhiteElo "1989"]
[BlackElo "2210"]
[Result "0-1"]
[Round "05"]
[TimeControl "180+2"]
[Date "2023.02.28"]
[WhiteClock "0:00:01"]
[BlackClock "0:00:51"]

1. e4 {[%clk 0:02:55]}  c5 {[%clk 0:02:59]} 2. Nc3 {[%clk 0:02:55]}  Nc6 {[%clk 0:02:59]} 3. Bb5 {[%clk 0:02:54]}  g6 {[%clk 0:02:57]} 4. Bxc6 {[%clk 0:02:54]}  dxc6 {[%clk 0:02:58]} 5. d3 {[%clk 0:02:54]}  e5 {[%clk 0:02:58]} 6. Nge2 {[%clk 0:02:51]}  Bg7 {[%clk 0:02:58]} 7. O-O {[%clk 0:02:52]}  Ne7 {[%clk 0:02:57]} 8. f4 {[%clk 0:02:52]}  O-O {[%clk 0:02:53]} 9. Qe1 {[%clk 0:02:36]}  f6 {[%clk 0:02:45]} 10. b3 {[%clk 0:02:27]}  h6 {[%clk 0:02:36]} 11. f5 {[%clk 0:01:56]}  gxf5 {[%clk 0:02:32]} 12. exf5 {[%clk 0:01:56]}  Bxf5 {[%clk 0:02:27]} 13. Qh4 {[%clk 0:01:45]}  Kh7 {[%clk 0:02:17]} 14. Kh1 {[%clk 0:01:35]}  Bg6 {[%clk 0:02:10]} 15. Rf3 {[%clk 0:01:07]}  Nf5 {[%clk 0:02:02]} 16. Qg4 {[%clk 0:01:02]}  Nd4 {[%clk 0:01:44]} 17. Rg3 {[%clk 0:00:47]}  Qe8 {[%clk 0:01:40]} 18. Nxd4 {[%clk 0:00:44]}  cxd4 {[%clk 0:01:32]} 19. Ne2 {[%clk 0:00:19]}  f5 {[%clk 0:01:31]} 20. Qh4 {[%clk 0:00:19]}  f4 {[%clk 0:01:28]} 21. Rh3 {[%clk 0:00:16]}  Qd8 {[%clk 0:01:28]} 22. Qxd8 {[%clk 0:00:10]}  Raxd8 {[%clk 0:01:27]} 23. Ba3 {[%clk 0:00:09]}  Rfe8 {[%clk 0:01:24]} 24. Ng1 {[%clk 0:00:09]}  e4 {[%clk 0:01:20]} 25. dxe4 {[%clk 0:00:08]}  d3 {[%clk 0:01:20]} 26. Rc1 {[%clk 0:00:04]}  d2 {[%clk 0:01:19]} 27. Rd1 {[%clk 0:00:03]}  Bxe4 {[%clk 0:01:20]} 28. Bb4 {[%clk 0:00:03]}  Bxc2 {[%clk 0:01:17]} 29. Rxd2 {[%clk 0:00:03]}  Be4 {[%clk 0:01:06]} 30. Rxd8 {[%clk 0:00:02]}  Rxd8 {[%clk 0:01:06]} 31. Rh4 {[%clk 0:00:01]}  Be5 {[%clk 0:01:03]} 32. h3 {[%clk 0:00:01]}  b6 {[%clk 0:00:55]} 33. Kh2 {[%clk 0:00:01]}  c5 {[%clk 0:00:51]} 0-1


[Site "https://www.chess.com"]

[Event "Titled Tuesday Blitz February 28 Late 2023"]
[White "Kovacs, Klara"]
[Black "Michalski, Olaf"]
[WhiteFideId "733210"]
[BlackFideId "1106740"]
[WhiteElo "2179"]
[BlackElo "2173"]
[Result "1-0"]
[Round "05"]
[TimeControl "180+2"]
[Date "2023.02.28"]
[WhiteClock "0:01:14"]
[BlackClock "0:00:01"]

1. d4 {[%clk 0:02:46]}  d6 {[%clk 0:02:58]} 2. e4 {[%clk 0:02:44]}  Nc6 {[%clk 0:02:58]} 3. Nc3 {[%clk 0:02:43]}  Nf6 {[%clk 0:02:57]} 4. Be3 {[%clk 0:02:40]}  e5 {[%clk 0:02:54]} 5. d5 {[%clk 0:02:39]}  Nb8 {[%clk 0:02:53]} 6. Be2 {[%clk 0:02:38]}  Be7 {[%clk 0:02:45]} 7. Qd2 {[%clk 0:02:38]}  Ng4 {[%clk 0:02:34]} 8. f3 {[%clk 0:02:32]}  Nxe3 {[%clk 0:02:33]} 9. Qxe3 {[%clk 0:02:33]}  O-O {[%clk 0:02:21]} 10. Bd3 {[%clk 0:02:24]}  c6 {[%clk 0:02:04]} 11. dxc6 {[%clk 0:02:18]}  bxc6 {[%clk 0:02:02]} 12. Nge2 {[%clk 0:02:18]}  Bg5 {[%clk 0:01:58]} 13. Qf2 {[%clk 0:02:18]}  Qb6 {[%clk 0:01:44]} 14. Qxb6 {[%clk 0:02:14]}  axb6 {[%clk 0:01:44]} 15. h4 {[%clk 0:02:15]}  Be3 {[%clk 0:01:39]} 16. Nd1 {[%clk 0:02:15]}  Bc5 {[%clk 0:01:31]} 17. c3 {[%clk 0:02:14]}  b5 {[%clk 0:01:30]} 18. Kd2 {[%clk 0:02:14]}  Be6 {[%clk 0:01:25]} 19. Ne3 {[%clk 0:02:11]}  Rxa2 {[%clk 0:01:14]} 20. Rxa2 {[%clk 0:02:10]}  Bxa2 {[%clk 0:01:15]} 21. Ra1 {[%clk 0:02:10]}  Be6 {[%clk 0:01:07]} 22. b4 {[%clk 0:02:10]}  Bb6 {[%clk 0:01:06]} 23. Ng3 {[%clk 0:02:10]}  g6 {[%clk 0:01:05]} 24. h5 {[%clk 0:02:09]}  Nd7 {[%clk 0:00:58]} 25. Ra6 {[%clk 0:02:08]}  Rb8 {[%clk 0:00:55]} 26. h6 {[%clk 0:02:02]}  f6 {[%clk 0:00:55]} 27. Ne2 {[%clk 0:01:56]}  Kf7 {[%clk 0:00:52]} 28. g3 {[%clk 0:01:49]}  Rb7 {[%clk 0:00:24]} 29. Ra8 {[%clk 0:01:47]}  Ra7 {[%clk 0:00:24]} 30. Rh8 {[%clk 0:01:47]}  Nf8 {[%clk 0:00:24]} 31. f4 {[%clk 0:01:42]}  Ra2+ {[%clk 0:00:22]} 32. Nc2 {[%clk 0:01:42]}  Bg4 {[%clk 0:00:20]} 33. Nc1 {[%clk 0:01:39]}  Ra7 {[%clk 0:00:15]} 34. f5 {[%clk 0:01:37]}  gxf5 {[%clk 0:00:14]} 35. exf5 {[%clk 0:01:38]}  d5 {[%clk 0:00:14]} 36. Ne3 {[%clk 0:01:37]}  Bxe3+ {[%clk 0:00:13]} 37. Kxe3 {[%clk 0:01:36]}  e4 {[%clk 0:00:13]} 38. Be2 {[%clk 0:01:35]}  Bxf5 {[%clk 0:00:13]} 39. Nb3 {[%clk 0:01:35]}  Ne6 {[%clk 0:00:10]} 40. g4 {[%clk 0:01:32]}  Bg6 {[%clk 0:00:09]} 41. Rc8 {[%clk 0:01:32]}  Rc7 {[%clk 0:00:08]} 42. Rb8 {[%clk 0:01:32]}  Ng5 {[%clk 0:00:06]} 43. Nd4 {[%clk 0:01:31]}  Ne6 {[%clk 0:00:05]} 44. Nb3 {[%clk 0:01:27]}  f5 {[%clk 0:00:05]} 45. gxf5 {[%clk 0:01:26]}  Bxf5 {[%clk 0:00:05]} 46. Bh5+ {[%clk 0:01:26]}  Bg6 {[%clk 0:00:05]} 47. Bxg6+ {[%clk 0:01:24]}  Kxg6 {[%clk 0:00:05]} 48. Re8 {[%clk 0:01:25]}  Ng5 {[%clk 0:00:04]} 49. Nd4 {[%clk 0:01:19]}  Kxh6 {[%clk 0:00:03]} 50. Rg8 {[%clk 0:01:19]}  Nf7 {[%clk 0:00:02]} 51. Rg3 {[%clk 0:01:17]}  Kh5 {[%clk 0:00:01]} 52. Ne6 {[%clk 0:01:14]}  h6 {[%clk 0:00:01]} 53. Nxc7 {[%clk 0:01:14]} 1-0


[Site "https://www.chess.com"]

[Event "Titled Tuesday Blitz February 28 Late 2023"]
[White "Gatterer, Florian"]
[Black "Tsukerman, Julia"]
[WhiteFideId "811688"]
[BlackFideId "2621649"]
[WhiteElo "2221"]
[BlackElo "1667"]
[Result "1-0"]
[Round "05"]
[TimeControl "180+2"]
[Date "2023.02.28"]
[WhiteClock "0:01:36"]
[BlackClock "0:00:57"]

1. b3 {[%clk 0:03:00]}  d5 {[%clk 0:02:58]} 2. Bb2 {[%clk 0:02:58]}  e6 {[%clk 0:02:58]} 3. e3 {[%clk 0:02:48]}  Nf6 {[%clk 0:02:58]} 4. Nf3 {[%clk 0:02:48]}  Be7 {[%clk 0:02:59]} 5. c4 {[%clk 0:02:47]}  O-O {[%clk 0:02:56]} 6. Be2 {[%clk 0:02:47]}  c5 {[%clk 0:02:55]} 7. d4 {[%clk 0:02:46]}  Nc6 {[%clk 0:02:44]} 8. O-O {[%clk 0:02:34]}  b6 {[%clk 0:02:22]} 9. dxc5 {[%clk 0:02:31]}  Bxc5 {[%clk 0:02:17]} 10. Nc3 {[%clk 0:02:29]}  dxc4 {[%clk 0:02:10]} 11. Bxc4 {[%clk 0:02:28]}  Bb7 {[%clk 0:02:08]} 12. Qe2 {[%clk 0:02:28]}  Qe7 {[%clk 0:01:59]} 13. Rfd1 {[%clk 0:02:27]}  Rfd8 {[%clk 0:01:57]} 14. h3 {[%clk 0:02:27]}  h6 {[%clk 0:01:47]} 15. Ba6 {[%clk 0:02:25]}  Rac8 {[%clk 0:01:42]} 16. Rxd8+ {[%clk 0:02:22]}  Rxd8 {[%clk 0:01:40]} 17. Bxb7 {[%clk 0:02:22]}  Qxb7 {[%clk 0:01:39]} 18. Rd1 {[%clk 0:02:22]}  Qe7 {[%clk 0:01:33]} 19. Kf1 {[%clk 0:02:14]}  Nb4 {[%clk 0:01:22]} 20. a3 {[%clk 0:02:10]}  Nbd5 {[%clk 0:01:21]} 21. b4 {[%clk 0:01:59]}  Nxc3 {[%clk 0:01:05]} 22. Bxc3 {[%clk 0:01:59]}  Rxd1+ {[%clk 0:01:02]} 23. Qxd1 {[%clk 0:01:58]}  Bd6 {[%clk 0:01:01]} 24. Qd4 {[%clk 0:01:39]}  Nd5 {[%clk 0:00:57]} 25. Qxg7# {[%clk 0:01:36]} 1-0


[Site "https://www.chess.com"]

[Event "Titled Tuesday Blitz February 28 Late 2023"]
[White "Poeta, Caio Medeiros"]
[Black "Skaric, Djuro"]
[WhiteFideId "2142660"]
[BlackFideId "934569"]
[WhiteElo "2191"]
[BlackElo "2282"]
[Result "1-0"]
[Round "05"]
[TimeControl "180+2"]
[Date "2023.02.28"]
[WhiteClock "0:00:01"]
[BlackClock "0:00:12"]

1. d4 {[%clk 0:03:00]}  d6 {[%clk 0:03:00]} 2. c4 {[%clk 0:03:00]}  g6 {[%clk 0:03:01]} 3. Nc3 {[%clk 0:03:00]}  Bg7 {[%clk 0:03:02]} 4. e4 {[%clk 0:03:01]}  Nf6 {[%clk 0:03:02]} 5. f3 {[%clk 0:03:00]}  O-O {[%clk 0:03:02]} 6. Be3 {[%clk 0:03:01]}  Nc6 {[%clk 0:03:02]} 7. Nge2 {[%clk 0:03:00]}  e5 {[%clk 0:03:02]} 8. d5 {[%clk 0:03:00]}  Ne7 {[%clk 0:03:01]} 9. g4 {[%clk 0:03:00]}  c6 {[%clk 0:03:02]} 10. h4 {[%clk 0:03:00]}  b5 {[%clk 0:03:01]} 11. g5 {[%clk 0:02:29]}  Nh5 {[%clk 0:02:58]} 12. cxb5 {[%clk 0:02:29]}  cxd5 {[%clk 0:02:58]} 13. Nxd5 {[%clk 0:02:27]}  Nxd5 {[%clk 0:02:58]} 14. Qxd5 {[%clk 0:02:27]}  Be6 {[%clk 0:02:58]} 15. Qd2 {[%clk 0:02:25]}  d5 {[%clk 0:02:59]} 16. exd5 {[%clk 0:02:24]}  Bxd5 {[%clk 0:02:59]} 17. Bg2 {[%clk 0:02:25]}  Bc4 {[%clk 0:02:26]} 18. Nc3 {[%clk 0:02:08]}  Qe7 {[%clk 0:02:25]} 19. O-O-O {[%clk 0:02:02]}  Rac8 {[%clk 0:02:22]} 20. Kb1 {[%clk 0:01:59]}  Ng3 {[%clk 0:02:21]} 21. Rhg1 {[%clk 0:01:56]}  Nf5 {[%clk 0:02:01]} 22. Bf2 {[%clk 0:01:40]}  Rfd8 {[%clk 0:01:57]} 23. Qe1 {[%clk 0:01:30]}  Nd6 {[%clk 0:01:49]} 24. Nd5 {[%clk 0:01:16]}  Bxd5 {[%clk 0:01:45]} 25. Rxd5 {[%clk 0:01:17]}  Qb7 {[%clk 0:01:42]} 26. f4 {[%clk 0:01:11]}  Qc7 {[%clk 0:01:35]} 27. Rc5 {[%clk 0:01:05]}  Qd7 {[%clk 0:01:27]} 28. Rxc8 {[%clk 0:01:05]}  Rxc8 {[%clk 0:01:27]} 29. fxe5 {[%clk 0:01:06]}  Qf5+ {[%clk 0:01:23]} 30. Ka1 {[%clk 0:01:06]}  Bxe5 {[%clk 0:01:22]} 31. Bg3 {[%clk 0:00:44]}  Bxb2+ {[%clk 0:01:17]} 32. Kxb2 {[%clk 0:00:41]}  Qc2+ {[%clk 0:01:17]} 33. Ka1 {[%clk 0:00:40]}  Nc4 {[%clk 0:01:09]} 34. Qc1 {[%clk 0:00:33]}  Qd3 {[%clk 0:01:00]} 35. Bc6 {[%clk 0:00:32]}  Qd4+ {[%clk 0:00:56]} 36. Kb1 {[%clk 0:00:32]}  Qd3+ {[%clk 0:00:52]} 37. Ka1 {[%clk 0:00:32]}  Qd4+ {[%clk 0:00:51]} 38. Kb1 {[%clk 0:00:31]}  Nd2+ {[%clk 0:00:50]} 39. Kc2 {[%clk 0:00:28]}  Ne4 {[%clk 0:00:49]} 40. Qe1 {[%clk 0:00:11]}  Qc4+ {[%clk 0:00:45]} 41. Kb1 {[%clk 0:00:11]}  Nc3+ {[%clk 0:00:44]} 42. Kb2 {[%clk 0:00:10]}  Na4+ {[%clk 0:00:43]} 43. Ka3 {[%clk 0:00:08]}  Nc5 {[%clk 0:00:38]} 44. Qb4 {[%clk 0:00:07]}  Qd3+ {[%clk 0:00:38]} 45. Kb2 {[%clk 0:00:07]}  Ne6 {[%clk 0:00:35]} 46. Be5 {[%clk 0:00:03]}  Qe2+ {[%clk 0:00:33]} 47. Kb1 {[%clk 0:00:03]}  Qe3 {[%clk 0:00:30]} 48. Re1 {[%clk 0:00:04]}  Qd3+ {[%clk 0:00:30]} 49. Ka1 {[%clk 0:00:03]}  a5 {[%clk 0:00:29]} 50. Qb2 {[%clk 0:00:03]}  a4 {[%clk 0:00:26]} 51. Bf6 {[%clk 0:00:03]}  a3 {[%clk 0:00:27]} 52. Qe5 {[%clk 0:00:03]}  Qd2 {[%clk 0:00:18]} 53. Qe2 {[%clk 0:00:01]}  Qb4 {[%clk 0:00:15]} 54. Rd1 {[%clk 0:00:02]}  h5 {[%clk 0:00:13]} 55. Qd2 {[%clk 0:00:02]}  Qc5 {[%clk 0:00:11]} 56. Qd6 {[%clk 0:00:02]}  Qc3+ {[%clk 0:00:11]} 57. Bxc3 {[%clk 0:00:01]}  Rd8 {[%clk 0:00:11]} 58. Qxd8+ {[%clk 0:00:01]}  Nxd8 {[%clk 0:00:12]} 59. Rxd8+ {[%clk 0:00:01]} 1-0


[Site "https://www.chess.com"]

[Event "Titled Tuesday Blitz February 28 Late 2023"]
[White "Govender, Kaedan"]
[Black "Nery Junior, Jose Antonio"]
[WhiteFideId "14322072"]
[BlackFideId "2104822"]
[WhiteElo "1957"]
[BlackElo "2197"]
[Result "0-1"]
[Round "05"]
[TimeControl "180+2"]
[Date "2023.02.28"]
[WhiteClock "0:01:24"]
[BlackClock "0:02:08"]

1. d4 {[%clk 0:03:00]}  d5 {[%clk 0:02:55]} 2. c4 {[%clk 0:03:01]}  c6 {[%clk 0:02:55]} 3. Nc3 {[%clk 0:02:59]}  Nf6 {[%clk 0:02:55]} 4. cxd5 {[%clk 0:02:58]}  cxd5 {[%clk 0:02:55]} 5. Nf3 {[%clk 0:02:59]}  Nc6 {[%clk 0:02:55]} 6. g3 {[%clk 0:02:57]}  Bf5 {[%clk 0:02:55]} 7. Bg2 {[%clk 0:02:58]}  e6 {[%clk 0:02:55]} 8. O-O {[%clk 0:02:58]}  Bd6 {[%clk 0:02:53]} 9. Nh4 {[%clk 0:02:54]}  Bg6 {[%clk 0:02:52]} 10. Nxg6 {[%clk 0:02:53]}  hxg6 {[%clk 0:02:53]} 11. e4 {[%clk 0:02:50]}  dxe4 {[%clk 0:02:52]} 12. Nxe4 {[%clk 0:02:51]}  Nxe4 {[%clk 0:02:51]} 13. Bxe4 {[%clk 0:02:52]}  Rc8 {[%clk 0:02:47]} 14. d5 {[%clk 0:02:50]}  exd5 {[%clk 0:02:46]} 15. Bxd5 {[%clk 0:02:48]}  O-O {[%clk 0:02:45]} 16. Bg2 {[%clk 0:02:40]}  Qf6 {[%clk 0:02:41]} 17. Bg5 {[%clk 0:02:35]}  Qxg5 {[%clk 0:02:36]} 18. Qxd6 {[%clk 0:02:34]}  Rfd8 {[%clk 0:02:35]} 19. Qa3 {[%clk 0:02:26]}  Rd7 {[%clk 0:02:23]} 20. Qb3 {[%clk 0:02:03]}  Nd4 {[%clk 0:02:19]} 21. Qd3 {[%clk 0:01:51]}  Rc2 {[%clk 0:02:08]} 22. b4 {[%clk 0:01:27]}  Ne2+ {[%clk 0:02:07]} 23. Qxe2 {[%clk 0:01:24]}  Rxe2 {[%clk 0:02:08]} 0-1


[Site "https://www.chess.com"]